bitfinex-derivatives/quotes_BTCF0:USTF0_20240907
["timestamp","ask_amount","ask_price","bid_price","bid_amount"]
[1725752381022,0.092496,54059.0,54058.0,0.07372827]
[1725752381225,0.1,54061.0,54056.0,0.16622927]
[1725752381529,0.098487,54064.0,54057.0,0.05529758]
[1725752381530,0.092497,54058.0,54057.0,0.05529758]
[1725752382923,0.192497,54058.0,54057.0,0.05529758]
[1725752383129,0.197497,54058.0,54057.0,0.05529758]
[1725752383531,0.197497,54058.0,54056.0,0.15763078]
[1725752384231,0.203497,54058.0,54056.0,0.15763078]
[1725752384826,0.092499,54057.0,54056.0,0.15763078]
[1725752385427,0.092499,54057.0,54056.0,0.1023332]
[1725752386321,0.097499,54057.0,54056.0,0.1023332]
[1725752386529,0.101499,54057.0,54056.0,0.1023332]
[1725752392428,0.009,54057.0,54056.0,0.1023332]
[1725752394434,0.009,54057.0,54056.0,0.15763078]
[1725752397038,0.009,54057.0,54056.0,0.1023332]
[1725752402436,0.009,54057.0,54056.0,0.17606147]
[1725752403936,0.009,54057.0,54056.0,0.1023332]
[1725752404142,0.009,54057.0,54056.0,0.15755831]
[1725752404354,0.009,54057.0,54056.0,0.1023332]
[1725752404539,0.109,54057.0,54056.0,0.1023332]
[1725752404734,0.201499,54057.0,54056.0,0.15756845]
[1725752404936,0.201499,54057.0,54056.0,0.1023332]
[1725752407335,0.201499,54057.0,54056.0,0.15756845]
[1725752409437,0.201499,54057.0,54056.0,0.1023332]
[1725752410846,0.192499,54057.0,54056.0,0.1033332]
[1725752411541,0.192499,54057.0,54056.0,0.1023332]
[1725752411740,0.192499,54057.0,54056.0,0.1033332]
[1725752412241,0.1,54057.0,54056.0,0.1033332]
[1725752412442,0.092496,54059.0,54058.0,0.092497]
[1725752412645,0.192496,54059.0,54058.0,0.1662264]
[1725752412944,0.192496,54059.0,54058.0,0.092497]
[1725752413452,0.192496,54059.0,54058.0,0.1662264]
[1725752413652,0.194496,54059.0,54058.0,0.1662264]
[1725752414048,0.194496,54059.0,54058.0,0.092497]
[1725752414356,0.195496,54059.0,54058.0,0.092497]
[1725752414944,0.197496,54059.0,54058.0,0.092497]
[1725752415850,0.092499,54057.0,54056.0,0.0835616]
[1725752416957,0.197499,54057.0,54056.0,0.0835616]
[1725752418254,0.201499,54057.0,54056.0,0.0835616]
[1725752419053,0.201499,54057.0,54056.0,0.0098322]
[1725752419356,0.092501,54056.0,54055.0,0.0737294]
[1725752419754,0.092504,54054.0,54053.0,0.092505]
[1725752420157,0.092504,54054.0,54053.0,0.10234931]
[1725752422360,0.094504,54054.0,54053.0,0.10234931]
[1725752423155,0.094504,54054.0,54053.0,0.00984431]
[1725752423354,0.094504,54054.0,54051.0,0.092508]
[1725752423355,0.092508,54052.0,54051.0,0.092508]
[1725752425150,0.092509,54051.0,54050.0,0.09226028]
[1725752425360,0.192508,54053.0,54048.0,0.092514]
[1725752425555,0.1,54049.0,54048.0,0.092514]
[1725752426464,0.192513,54049.0,54048.0,0.092514]
[1725752427561,0.197513,54049.0,54048.0,0.092514]
[1725752428257,0.197513,54049.0,54048.0,0.14781551]
[1725752428662,0.197513,54049.0,54048.0,0.092514]
[1725752429560,0.203513,54049.0,54048.0,0.092514]
[1725752429957,0.203513,54049.0,54048.0,0.14780548]
[1725752435662,0.203513,54049.0,54048.0,0.092514]
[1725752435865,0.203513,54049.0,54048.0,0.14777938]
[1725752436058,0.203513,54049.0,54048.0,0.092514]
[1725752436658,0.203513,54049.0,54048.0,0.14777922]
[1725752436860,0.203513,54049.0,54048.0,0.092514]
[1725752438094,0.203513,54049.0,54048.0,0.14777739]
[1725752439367,0.203513,54049.0,54048.0,0.092514]
[1725752439561,0.103513,54049.0,54048.0,0.092514]
[1725752439870,0.092501,54056.0,54055.0,0.092501]
[1725752440965,0.105501,54056.0,54055.0,0.092501]
[1725752442166,0.105501,54056.0,54055.0,0.093501]
[1725752442167,0.119501,54056.0,54055.0,0.093501]
[1725752442571,0.114501,54056.0,54055.0,0.093501]
[1725752442875,0.101501,54056.0,54055.0,0.093501]
[1725752443171,0.109501,54056.0,54055.0,0.093501]
[1725752447475,0.109501,54056.0,54055.0,0.001]
[1725752447665,0.253301,54056.0,54055.0,0.001]
[1725752448877,0.900802,54056.0,54055.0,0.001]
[1725752451771,0.345802,54056.0,54055.0,0.001]
[1725752452865,0.35548039,54056.0,54055.0,0.001]
[1725752459679,0.30778039,54056.0,54055.0,0.001]
[1725752463377,0.109501,54056.0,54055.0,0.001]
[1725752463579,0.109501,54056.0,54055.0,0.093503]
[1725752465078,0.109501,54056.0,54055.0,0.14875599]
[1725752465384,0.109501,54056.0,54055.0,0.093503]
[1725752474292,0.100501,54056.0,54055.0,0.092503]
[1725752474890,0.102501,54056.0,54055.0,0.092503]
[1725752475692,0.094501,54056.0,54055.0,0.093503]
[1725752476391,0.094501,54056.0,54055.0,0.092503]
[1725752476589,0.095501,54056.0,54055.0,0.092503]
[1725752479188,0.003,54056.0,54055.0,0.092503]
[1725752482593,0.003,54056.0,54055.0,0.1478127]
[1725752483104,0.095501,54056.0,54055.0,0.1478127]
[1725752491420,0.003,54056.0,54055.0,0.1478127]
[1725752492312,0.003,54056.0,54055.0,0.092503]
[1725752494114,0.003,54056.0,54055.0,0.166276]
[1725752496519,0.003,54056.0,54055.0,0.092503]
[1725752499815,0.003,54056.0,54055.0,0.166276]
[1725752501823,0.003,54056.0,54055.0,0.092503]
[1725752502818,0.003,54056.0,54055.0,0.185006]
[1725752503015,0.0494,54071.0,54055.0,1.255]
[1725752503325,0.0494,54071.0,54054.0,0.09226028]
[1725752503326,0.09247,54074.0,54073.0,0.092471]
[1725752503525,0.0494,54081.0,54079.0,0.092461]
[1725752503714,0.141859,54081.0,54079.0,0.092461]
[1725752503917,0.0483,54084.0,54082.0,0.092456]
[1725752504116,0.1,54083.0,54077.0,0.05534347]
[1725752504319,0.1,54080.0,54075.0,0.05534347]
[1725752504526,0.092459,54081.0,54079.0,0.092461]
[1725752504725,0.192461,54080.0,54075.0,0.092468]
[1725752504923,0.1,54077.0,54075.0,0.092468]
[1725752505225,0.1,54077.0,54076.0,0.092467]
[1725752505427,0.141861,54080.0,54078.0,0.092463]
[1725752505428,0.092461,54080.0,54078.0,0.092463]
[1725752505728,0.192461,54080.0,54079.0,0.092461]
[1725752507429,0.220461,54080.0,54079.0,0.001]
[1725752507824,1.375181,54080.0,54079.0,0.001]
[1725752508229,1.361181,54080.0,54079.0,0.001]
[1725752508421,1.375181,54080.0,54079.0,0.002]
[1725752508933,0.220461,54080.0,54079.0,0.002]
[1725752509731,0.23025349,54080.0,54079.0,0.002]
[1725752513120,0.220461,54080.0,54079.0,0.002]
[1725752514028,0.220461,54080.0,54079.0,0.094461]
[1725752514230,0.028,54080.0,54079.0,0.094461]
[1725752517132,0.128,54080.0,54079.0,0.094461]
[1725752523746,0.028,54080.0,54079.0,0.094461]
[1725752525834,0.12046,54080.0,54079.0,0.002]
[1725752526434,0.21596,54080.0,54079.0,0.002]
[1725752529449,0.12046,54080.0,54079.0,0.002]
[1725752531948,0.12046,54080.0,54079.0,0.094461]
[1725752541254,0.028,54080.0,54079.0,0.094461]
[1725752542254,0.092445,54089.0,54088.0,0.092445]
[1725752542650,0.192445,54089.0,54088.0,0.092445]
[1725752543350,0.206445,54089.0,54088.0,0.093445]
[1725752543653,0.220445,54089.0,54088.0,0.094445]
[1725752544062,0.206445,54089.0,54088.0,0.093445]
[1725752544251,0.220445,54089.0,54088.0,0.094445]
[1725752544845,0.220445,54089.0,54088.0,0.002]
[1725752545055,1.467531,54089.0,54088.0,0.002]
[1725752545661,0.867531,54089.0,54088.0,0.002]
[1725752546658,0.312891,54089.0,54088.0,0.002]
[1725752546865,0.867531,54089.0,54088.0,0.002]
[1725752547161,0.312891,54089.0,54088.0,0.002]
[1725752547359,0.867531,54089.0,54088.0,0.002]
[1725752548753,0.312891,54089.0,54088.0,0.002]
[1725752553854,0.212891,54089.0,54088.0,0.002]
[1725752554051,0.312891,54089.0,54088.0,0.002]
[1725752563466,0.306891,54089.0,54088.0,0.002]
[1725752563766,0.296891,54089.0,54088.0,0.002]
[1725752567174,0.296889,54089.0,54088.0,0.002]
[1725752567471,0.104444,54089.0,54088.0,0.002]
[1725752568771,0.196888,54089.0,54088.0,0.002]
[1725752568976,0.104444,54089.0,54088.0,0.002]
[1725752569273,0.196888,54089.0,54088.0,0.002]
[1725752572472,0.104444,54089.0,54088.0,0.002]
[1725752578079,1.351528,54089.0,54088.0,0.002]
[1725752578287,0.092458,54081.0,54080.0,0.05527238]
[1725752578580,0.192453,54084.0,54079.0,0.05527238]
[1725752578581,0.09246,54080.0,54079.0,0.05527238]
[1725752578903,0.092461,54079.0,54078.0,0.05527238]
[1725752579381,0.192461,54079.0,54078.0,0.092463]
[1725752580184,0.195461,54079.0,54078.0,0.092463]
[1725752580380,0.198461,54079.0,54078.0,0.092463]
[1725752586688,0.198461,54079.0,54076.0,0.05549251]
[1725752586689,0.092465,54077.0,54076.0,0.05549251]
[1725752586893,0.092465,54077.0,54076.0,0.14795951]
[1725752589678,0.093465,54077.0,54076.0,0.14795951]
[1725752603793,0.093465,54077.0,54076.0,0.20322429]
[1725752606404,0.093465,54077.0,54076.0,0.14795951]
[1725752606703,0.093465,54077.0,54076.0,0.2217508]
[1725752609209,0.001,54077.0,54076.0,0.2217508]
[1725752609513,0.001,54077.0,54076.0,0.14795951]
[1725752613000,0.001,54077.0,54076.0,0.22167819]
[1725752616809,0.001,54077.0,54076.0,0.14795951]
[1725752621112,0.001,54077.0,54076.0,0.24042651]
[1725752621818,0.001,54077.0,54076.0,0.31416828]
[1725752627909,0.001,54077.0,54076.0,0.24042651]
[1725752633929,0.092457,54082.0,54081.0,0.092458]
[1725752634134,0.092457,54082.0,54081.0,0.1477732]
[1725752634334,0.092457,54082.0,54081.0,0.092458]
[1725752634534,0.092457,54082.0,54081.0,0.1477732]
[1725752634839,0.092457,54082.0,54081.0,0.092458]
[1725752636236,0.092457,54082.0,54081.0,0.093458]
[1725752642033,0.092457,54082.0,54081.0,0.001]
[1725752643531,0.099457,54082.0,54081.0,0.002]
[1725752644135,0.099457,54082.0,54081.0,0.094458]
[1725752644337,0.099457,54082.0,54081.0,0.093458]
[1725752644535,0.100457,54082.0,54081.0,0.093458]
[1725752646139,0.105457,54082.0,54081.0,0.094458]
[1725752649138,0.11545638,54082.0,54081.0,0.094458]
[1725752649643,0.105457,54082.0,54081.0,0.094458]
[1725752671650,0.105457,54082.0,54081.0,0.002]
[1725752673149,0.205457,54082.0,54081.0,0.002]
[1725752679661,0.105457,54082.0,54081.0,0.002]
[1725752683457,0.013,54082.0,54081.0,0.094458]
[1725752683662,0.008,54082.0,54081.0,0.16721161]
[1725752683871,0.008,54082.0,54081.0,0.093458]
[1725752684166,0.01,54082.0,54081.0,0.16721161]
[1725752684360,0.01,54082.0,54081.0,0.093458]
[1725752684864,0.008,54082.0,54081.0,0.093458]
[1725752685065,0.002,54082.0,54081.0,0.092458]
[1725752685258,0.004,54082.0,54081.0,0.092458]
[1725752685967,0.002,54082.0,54081.0,0.092458]
[1725752686161,0.004,54082.0,54081.0,0.092458]
[1725752689772,0.004,54082.0,54081.0,0.14771849]
[1725752690166,0.004,54082.0,54081.0,0.092458]
[1725752690667,0.096456,54082.0,54081.0,0.092458]
[1725752701384,0.096456,54082.0,54078.0,0.14772249]
[1725752701385,0.092461,54079.0,54078.0,0.14772249]
[1725752701673,0.092461,54079.0,54076.0,0.05527171]
[1725752701674,0.1,54079.0,54076.0,0.05527171]
[1725752701878,0.092468,54075.0,54074.0,0.05527171]
[1725752702081,0.192468,54075.0,54074.0,0.05527171]
[1725752702582,0.091472,54073.0,54072.0,0.05527171]
[1725752702877,0.092477,54070.0,54069.0,0.05527171]
[1725752703075,0.092482,54067.0,54066.0,0.05527171]
[1725752703281,0.1,54069.0,54065.0,0.37627171]
[1725752703485,0.192485,54066.0,54064.0,0.05527171]
[1725752703677,0.1,54065.0,54064.0,0.05527171]
[1725752704585,0.092485,54066.0,54063.0,0.14775971]
[1725752704883,0.1,54064.0,54063.0,0.14775971]
[1725752705079,0.1,54064.0,54063.0,0.092488]
[1725752706674,0.1,54064.0,54062.0,0.05670134]
[1725752706675,0.1,54068.0,54066.0,0.092484]
[1725752707886,0.092482,54067.0,54066.0,0.092484]
[1725752710287,0.097482,54067.0,54066.0,0.092484]
[1725752710482,0.005,54067.0,54066.0,0.092484]
[1725752710788,0.092462,54079.0,54067.0,0.55488]
[1725752710973,0.092462,54079.0,54078.0,0.092463]
[1725752711475,0.1,54080.0,54079.0,0.092461]
[1725752711673,0.19246,54080.0,54079.0,0.092461]
[1725752713275,0.20346,54080.0,54079.0,0.092461]
[1725752713881,0.21446,54080.0,54079.0,0.093461]
[1725752718284,0.21446,54080.0,54079.0,0.001]
[1725752719788,0.30692,54080.0,54079.0,0.001]
[1725752755196,0.35769877,54080.0,54079.0,0.001]
[1725752755798,0.30692,54080.0,54079.0,0.001]
[1725752772817,0.39938,54080.0,54079.0,0.001]
[1725752774322,0.184934,54076.0,54075.0,0.0456]
[1725752774528,0.283934,54076.0,54075.0,0.0456]
[1725752775006,0.282934,54076.0,54075.0,0.0456]
[1725752776422,0.291934,54076.0,54075.0,0.0456]
[1725752777121,0.300934,54076.0,54075.0,0.0456]
[1725752778028,0.300934,54076.0,54071.0,0.05527171]
[1725752778029,0.092473,54072.0,54071.0,0.05527171]
[1725752778223,0.192473,54072.0,54071.0,0.05527171]
[1725752779008,0.197473,54072.0,54071.0,0.05527171]
[1725752779619,0.092475,54071.0,54070.0,0.05527171]
[1725752779819,0.192475,54071.0,54070.0,0.05527171]
[1725752780115,0.092477,54070.0,54069.0,0.05527171]
[1725752781817,0.094477,54070.0,54069.0,0.05527171]
[1725752783019,0.002,54070.0,54069.0,0.05527171]
[1725752783235,0.002,54070.0,54068.0,0.22892492]
[1725752783823,0.002,54070.0,54069.0,0.092479]
[1725752784031,0.004,54070.0,54069.0,0.092479]
[1725752785017,0.002,54070.0,54069.0,0.092479]
[1725752785213,0.003,54070.0,54069.0,0.092479]
[1725752786622,0.002,54070.0,54069.0,0.092479]
[1725752786934,0.004,54070.0,54069.0,0.092479]
[1725752787517,0.004,54070.0,54069.0,0.16623261]
[1725752789726,0.004,54070.0,54069.0,0.092479]
[1725752790125,0.004,54070.0,54069.0,0.16619642]
[1725752790330,0.004,54070.0,54069.0,0.092479]
[1725752794636,0.004,54070.0,54069.0,0.1661984]
[1725752795536,0.004,54070.0,54069.0,0.092479]
[1725752795835,0.004,54070.0,54069.0,0.1661982]
[1725752798139,0.004,54070.0,54069.0,0.092479]
[1725752798638,0.1,54089.0,54088.0,0.092446]
[1725752798835,0.24356802,54089.0,54088.0,0.092446]
[1725752799028,0.1,54089.0,54088.0,0.092446]
[1725752799949,0.128,54089.0,54088.0,0.093446]
[1725752800429,0.114,54089.0,54088.0,0.093446]
[1725752800732,0.128,54089.0,54088.0,0.093446]
[1725752802629,0.105,54089.0,54088.0,0.093446]
[1725752802833,0.11,54089.0,54088.0,0.093446]
[1725752803431,0.109,54089.0,54088.0,0.092446]
[1725752805434,0.09245,54086.0,54085.0,0.09245]
[1725752805636,0.19245,54086.0,54085.0,0.09245]
[1725752805834,0.09245,54086.0,54085.0,0.09245]
[1725752807042,0.09445,54086.0,54085.0,0.09245]
[1725752809737,0.002,54086.0,54085.0,0.09245]
[1725752818851,0.002,54086.0,54085.0,0.64713]
[1725752820849,0.092422,54103.0,54097.0,0.09243]
[1725752821050,0.092429,54098.0,54097.0,0.09243]
[1725752822151,0.092429,54098.0,54097.0,0.09343]
[1725752822951,0.106429,54098.0,54097.0,0.09443]
[1725752823357,0.120429,54098.0,54097.0,0.09443]
[1725752830466,0.092429,54098.0,54097.0,0.09243]
[1725752833279,0.186629,54098.0,54097.0,0.09243]
[1725752835586,0.0452,54104.0,54097.0,0.09243]
[1725752835587,0.1402,54118.0,54105.0,0.092416]
[1725752835878,0.1,54110.0,54107.0,0.092413]
[1725752836079,0.1,54110.0,54103.0,0.14753083]
[1725752836080,0.092414,54107.0,54103.0,0.14753083]
[1725752836277,0.1,54104.0,54103.0,0.092419]
[1725752836874,0.099,54104.0,54103.0,0.092419]
[1725752837379,0.1,54105.0,54104.0,0.092419]
[1725752837577,0.1402,54109.0,54108.0,0.092412]
[1725752837775,0.2402,54109.0,54108.0,0.092412]
[1725752839280,0.1459,54109.0,54108.0,0.092412]
[1725752839783,0.1589,54109.0,54108.0,0.093412]
[1725752840288,0.1719,54109.0,54108.0,0.094412]
[1725752842984,0.126,54109.0,54108.0,0.094412]
[1725752843182,0.026,54109.0,54108.0,0.094412]
[1725752843583,0.126,54109.0,54108.0,0.094412]
[1725752847273,0.026,54109.0,54108.0,0.094412]
[1725752847475,0.01447143,54109.0,54108.0,1.341264]
[1725752848584,0.01447143,54109.0,54108.0,0.741264]
[1725752848883,0.01447143,54109.0,54108.0,0.186824]
[1725752849894,0.01447143,54109.0,54108.0,0.233924]
[1725752850394,0.01447143,54109.0,54108.0,1.388364]
[1725752854190,0.01447143,54109.0,54108.0,0.788364]
[1725752854380,0.01447143,54109.0,54108.0,1.480776]
[1725752855695,0.013,54109.0,54108.0,1.479776]
[1725752855995,0.022,54109.0,54108.0,1.480776]
[1725752856795,0.021,54109.0,54108.0,1.480776]
[1725752856997,0.021,54109.0,54108.0,1.35083383]
[1725752857195,0.021,54109.0,54108.0,0.141512]
[1725752859198,0.021,54109.0,54108.0,0.241512]
[1725752859498,0.144,54118.0,54108.0,0.241512]
[1725752859499,0.3281,54239.0,54123.0,0.3071]
[1725752859701,0.23915691,54215.0,54181.0,0.5224107]
[1725752859890,0.01943462,54239.0,54193.0,0.05478731]
[1725752860091,0.1,54216.0,54202.0,0.05478731]
[1725752860302,0.00108,54226.0,54206.0,0.05478731]
[1725752860488,0.0487,54225.0,54206.0,0.14703131]
[1725752860695,0.0487,54225.0,54206.0,0.05478731]
[1725752860891,0.001,54207.0,54206.0,0.05478731]
[1725752861203,0.101,54207.0,54205.0,0.05478731]
[1725752861398,0.55344,54206.0,54205.0,0.05478731]
[1725752861594,0.65344,54206.0,54205.0,0.05478731]
[1725752861900,1.34344,54206.0,54190.0,0.092271]
[1725752862202,0.19,54206.0,54190.0,0.14705831]
[1725752862497,0.19,54206.0,54190.0,0.092271]
[1725752862697,0.19,54206.0,54188.0,0.05478731]
[1725752862898,0.19,54196.0,54188.0,0.05478731]
[1725752863086,0.19,54196.0,54181.0,0.61343857]
[1725752863087,0.19,54191.0,54190.0,0.004]
[1725752863495,1.3436,54191.0,54190.0,0.004]
[1725752864091,1.3436,54191.0,54188.0,0.006]
[1725752864400,0.5536,54190.0,54181.0,0.5224107]
[1725752864609,0.5536,54190.0,54174.0,0.05478731]
[1725752864610,0.19,54182.0,54174.0,0.05478731]
[1725752864793,0.19,54175.0,54167.0,0.05478731]
[1725752864990,0.19,54169.0,54166.0,0.05478731]
[1725752865193,0.0927,54200.0,54165.0,0.05394989]
[1725752865194,0.092265,54195.0,54165.0,0.05394989]
[1725752865395,0.092265,54195.0,54161.0,0.07304974]
[1725752865396,0.19,54176.0,54158.0,0.05394989]
[1725752865600,0.19,54176.0,54155.0,0.07304974]
[1725752865601,0.19,54176.0,54159.0,0.05394989]
[1725752865795,0.19,54176.0,54158.0,0.05394989]
[1725752865997,0.26,54175.0,54167.0,0.006]
[1725752866394,0.26,54175.0,54158.0,0.05394989]
[1725752866596,0.26,54175.0,54158.0,0.05994989]
[1725752867501,0.26,54175.0,54159.0,0.05394989]
[1725752867701,0.26,54175.0,54158.0,0.05994989]
[1725752867896,0.26,54175.0,54159.0,0.05394989]
[1725752868098,0.265,54175.0,54159.0,0.05394989]
[1725752868498,0.26,54175.0,54159.0,0.05394989]
[1725752868699,0.26,54175.0,54159.0,0.004]
[1725752869102,0.26,54169.0,54159.0,0.004]
[1725752869612,0.26,54169.0,54158.0,0.05794989]
[1725752869907,0.26,54169.0,54159.0,0.05794989]
[1725752870797,0.26,54169.0,54159.0,0.004]
[1725752870998,0.26,54169.0,54159.0,0.006]
[1725752871200,0.26,54169.0,54159.0,0.05994989]
[1725752871398,0.264,54169.0,54159.0,0.05594989]
[1725752871599,0.17162598,54169.0,54160.0,0.05394989]
[1725752871805,0.17162598,54169.0,54159.0,0.002]
[1725752871806,0.007,54169.0,54159.0,0.05494989]
[1725752872001,0.009,54169.0,54159.0,0.05594989]
[1725752872207,0.009,54169.0,54160.0,0.05394989]
[1725752872701,0.009,54169.0,54159.0,0.002]
[1725752872702,0.008,54169.0,54161.0,0.05394989]
[1725752873293,0.008,54169.0,54162.0,0.05394989]
[1725752873806,0.005,54169.0,54162.0,0.05394989]
[1725752874406,0.092301,54173.0,54162.0,0.05394989]
[1725752874708,0.092303,54172.0,54162.0,0.05394989]
[1725752875005,0.001,54169.0,54162.0,0.05394989]
[1725752875208,0.092303,54172.0,54162.0,0.05394989]
[1725752875503,0.092305,54171.0,54162.0,0.05394989]
[1725752875699,0.092305,54171.0,54163.0,0.05394989]
[1725752876405,0.002,54169.0,54163.0,0.05394989]
[1725752876708,0.002,54169.0,54164.0,0.05394989]
[1725752877509,0.002,54169.0,54157.0,0.092328]
[1725752877510,0.094308,54169.0,54166.0,0.05394989]
[1725752877707,0.092308,54169.0,54166.0,0.05394989]
[1725752878396,0.096308,54169.0,54166.0,0.05394989]
[1725752878602,0.09231,54168.0,54167.0,0.05394989]
[1725752879606,0.006,54169.0,54166.0,0.001]
[1725752879909,0.098308,54169.0,54168.0,0.05412701]
[1725752880914,0.26,54172.0,54166.0,0.07404974]
[1725752880915,0.092311,54167.0,54166.0,0.07404974]
[1725752881120,0.090311,54167.0,54166.0,0.07304974]
[1725752882224,0.090311,54167.0,54160.0,0.092323]
[1725752882225,0.092314,54166.0,54164.0,0.09102787]
[1725752882525,0.092315,54165.0,54164.0,0.09102787]
[1725752882815,0.092315,54165.0,54153.0,0.37660017]
[1725752882816,0.092316,54164.0,54159.0,0.09102787]
[1725752883116,0.092328,54157.0,54156.0,0.07228751]
[1725752883312,0.536984,54157.0,54156.0,0.07228751]
[1725752883507,1.506288,54157.0,54153.0,0.05425947]
[1725752883718,0.95233,54157.0,54153.0,0.0543071]
[1725752883903,0.95233,54157.0,54139.0,0.46272607]
[1725752883904,0.184674,54152.0,54151.0,0.0543071]
[1725752884316,0.184678,54151.0,54150.0,0.0543071]
[1725752884505,0.55404,54150.0,54148.0,0.07228751]
[1725752884708,0.55404,54149.0,54148.0,0.07228751]
[1725752884909,0.092344,54148.0,54147.0,0.07228751]
[1725752885206,0.184694,54146.0,54145.0,0.07228751]
[1725752885408,0.09235,54144.0,54143.0,0.07228751]
[1725752885620,0.092357,54140.0,54139.0,0.46043494]
[1725752885823,0.091357,54140.0,54139.0,0.60118418]
[1725752886120,0.281357,54140.0,54139.0,0.60118418]
[1725752886426,0.280357,54140.0,54139.0,0.36940707]
[1725752887015,0.280357,54140.0,54139.0,0.37040707]
[1725752887407,1.433477,54140.0,54139.0,0.46110557]
[1725752887719,0.833477,54140.0,54139.0,0.36940707]
[1725752887913,0.834477,54140.0,54139.0,0.37040707]
[1725752888604,1.446477,54140.0,54139.0,0.002]
[1725752888805,1.538834,54140.0,54139.0,0.002]
[1725752889308,1.539834,54140.0,54139.0,0.002]
[1725752889507,0.988714,54140.0,54139.0,0.002]
[1725752889704,0.850477,54140.0,54139.0,0.05647649]
[1725752889917,0.850477,54140.0,54139.0,0.002]
[1725752890411,0.296357,54140.0,54139.0,0.002]
[1725752890718,0.296357,54140.0,54139.0,0.07458164]
[1725752891108,0.284357,54140.0,54139.0,0.07358164]
[1725752891309,0.298357,54140.0,54139.0,0.002]
[1725752892022,0.298357,54140.0,54139.0,0.07471306]
[1725752892212,0.298357,54140.0,54139.0,0.002]
[1725752892919,0.298357,54140.0,54139.0,0.0926985]
[1725752893315,0.298357,54140.0,54139.0,0.002]
[1725752893516,0.298357,54140.0,54139.0,0.23345692]
[1725752893817,1.544834,54140.0,54139.0,0.07280511]
[1725752894020,1.452477,54140.0,54137.0,0.07280511]
[1725752894225,0.092362,54137.0,54134.0,2.38506611]
[1725752894421,0.091366,54135.0,54134.0,2.311261]
[1725752895225,0.090366,54135.0,54134.0,2.38406064]
[1725752895522,0.089366,54135.0,54134.0,2.311261]
[1725752895713,0.101366,54135.0,54134.0,2.38506064]
[1725752895910,0.101366,54135.0,54134.0,2.312261]
[1725752896110,0.101366,54135.0,54134.0,2.38506064]
[1725752896315,0.103366,54135.0,54134.0,2.313261]
[1725752897323,0.103366,54135.0,54134.0,2.38296419]
[1725752897522,0.105366,54135.0,54134.0,2.38296419]
[1725752898519,0.091366,54135.0,54134.0,2.38196419]
[1725752898725,0.099366,54135.0,54134.0,2.38296419]
[1725752898924,0.100366,54135.0,54134.0,2.38296419]
[1725752899233,0.097366,54135.0,54134.0,2.38196419]
[1725752899620,0.005,54135.0,54134.0,2.45372456]
[1725752899921,0.100366,54135.0,54134.0,2.38096419]
[1725752900225,0.100366,54135.0,54134.0,2.4355357]
[1725752900424,0.097366,54135.0,54134.0,2.38096419]
[1725752900625,0.100366,54135.0,54134.0,2.4355345]
[1725752901127,0.103366,54135.0,54134.0,2.4365345]
[1725752901428,0.103366,54135.0,54134.0,2.38196419]
[1725752901617,0.095366,54135.0,54134.0,2.38096419]
[1725752901828,0.101366,54135.0,54134.0,2.38196419]
[1725752903329,1.348892,54135.0,54134.0,0.002]
[1725752904321,1.442258,54135.0,54134.0,0.002]
[1725752904520,0.103366,54135.0,54125.0,0.05457031]
[1725752904834,0.259,54127.0,54125.0,0.05457031]
[1725752905025,0.092381,54126.0,54125.0,0.05457031]
[1725752905233,0.352381,54126.0,54125.0,0.05457031]
[1725752905424,0.351381,54126.0,54125.0,0.05457031]
[1725752905935,0.350381,54126.0,54125.0,0.05457031]
[1725752906317,0.015,54135.0,54125.0,0.06970319]
[1725752906521,0.09237,54133.0,54130.0,0.14698651]
[1725752906731,0.09237,54133.0,54131.0,0.05461251]
[1725752906927,0.09237,54133.0,54132.0,0.1243157]
[1725752907325,0.092359,54139.0,54134.0,0.092367]
[1725752907526,0.092359,54139.0,54137.0,0.05461778]
[1725752907829,0.092359,54139.0,54138.0,0.06970319]
[1725752908336,0.092353,54143.0,54138.0,0.06970319]
[1725752908629,0.092354,54142.0,54139.0,0.092357]
[1725752909128,0.092354,54142.0,54141.0,0.06970319]
[1725752910534,0.103354,54142.0,54141.0,0.07070319]
[1725752912235,0.116354,54142.0,54141.0,0.2124528]
[1725752912834,0.116354,54142.0,54141.0,0.30377106]
[1725752913233,0.116354,54142.0,54141.0,0.2124528]
[1725752916335,0.116354,54142.0,54141.0,0.30382788]
[1725752917239,0.116354,54142.0,54141.0,0.2124531]
[1725752917434,0.116354,54142.0,54141.0,0.30381688]
[1725752917940,0.116354,54142.0,54141.0,0.2124531]
[1725752918830,0.116354,54142.0,54141.0,0.21244852]
[1725752919632,0.024,54142.0,54141.0,0.21244852]
[1725752919832,0.024,54142.0,54141.0,0.30379365]
[1725752919833,0.116355,54142.0,54141.0,0.30379365]
[1725752920230,0.116355,54142.0,54141.0,0.16304832]
[1725752920542,0.116355,54142.0,54141.0,0.07170319]
[1725752920845,0.116355,54142.0,54141.0,0.14477623]
[1725752921437,0.116355,54142.0,54141.0,0.07170319]
[1725752922240,0.116355,54142.0,54141.0,0.12649804]
[1725752922437,0.116355,54142.0,54141.0,0.07170319]
[1725752923744,0.20871,54142.0,54141.0,0.07170319]
[1725752923944,0.25411,54142.0,54141.0,0.07170319]
[1725752924838,0.25411,54142.0,54141.0,0.002]
[1725752925144,0.30361,54142.0,54141.0,0.002]
[1725752926036,0.35221,54142.0,54141.0,0.002]
[1725752926547,0.444565,54142.0,54141.0,0.002]
[1725752926735,0.092371,54132.0,54131.0,0.36151075]
[1725752926935,0.282371,54132.0,54131.0,0.36151075]